[Event "44th Chess Olympiad Open 2022"]
[Site "Chennai"]
[Date "2022.07.30"]
[Round "2.5"]
[White "Wojtaszek, Radoslaw"]
[Black "Cardoso Cardoso, Jose Gabriel"]
[Result "1-0"]
[WhiteElo "2708"]
[BlackElo "2493"]
[Annotator "TA"]
[PlyCount "91"]
[EventDate "2022.??.??"]
[TimeControl "60"]

{[%evp 11,91,18,17,8,9,0,3,18,16,10,6,0,8,0,0,0,4,0,0,0,28,27,27,27,27,0,0,0,0,
0,0,8,87,96,91,78,159,172,161,153,164,152,160,156,187,169,192,176,198,149,167,
175,197,199,220,220,246,245,227,204,238,237,281,262,262,246,240,220,340,220,
476,470,437,366,336,335,329,306,300,288,276,287]} 1. d4 {[%emt 0:00:03]} Nf6 {
[%emt 0:00:12]} 2. c4 {[%emt 0:00:04]} e6 {[%emt 0:00:10]} 3. Nf3 {[%emt 0:00:
00]} d5 {[%emt 0:00:19]} 4. g3 {[%emt 0:00:03]} Bb4+ {[%emt 0:00:17]} 5. Bd2 {
[%emt 0:00:06]} a5 {[%emt 0:00:08]} 6. Bg2 {[%emt 0:02:30]} O-O {[%emt 0:00:07]
} 7. a3 {[%emt 0:01:31] 7.Qc2 is becoming the main line. E11: Bogo-Indian.} Be7
{[%emt 0:01:20]} 8. Qc2 {[%emt 0:00:48]} c6 {[%emt 0:00:12]} 9. O-O {[%emt 0:
00:00] The position is equal.} b6 {[%emt 0:00:08]} 10. Bf4 {[%emt 0:04:49]}
Nbd7 {[%emt 0:05:44]} 11. cxd5 {[%emt 0:07:41]} cxd5 {[%emt 0:00:08]} 12. Nc3 {
[%emt 0:00:30]} Ba6 {[%emt 0:07:20]} 13. Rfc1 {[%emt 0:00:12]} b5 {[%emt 0:00:
00] [#]} 14. a4 $146 {[%emt 0:04:37]} ({Predecessor:} 14. e3 Qb6 15. Bf1 Rfc8
16. Qd1 h6 17. h4 b4 18. Na4 Qb7 19. axb4 Bxf1 20. Kxf1 Bxb4 {½-½ (39) Ding,
L (2799)-Carlsen,M (2847) chess24.com INT 2021}) 14... bxa4 {[%emt 0:02:20]}
15. Qxa4 {[%emt 0:00:10]} Nh5 {[%emt 0:14:31] [#]} 16. Bc7 $1 {[%emt 0:31:35]}
Qxc7 {[%emt 0:09:08] [#]} 17. Nxd5 $1 {[%emt 0:00:06]} Qd8 {[%emt 0:00:39]} 18.
Nxe7+ {[%emt 0:11:21]} (18. Nc7 $5 {[%cal Rc7a8]} Nc5 19. Rxc5 Bxc5 20. Nxa8
$11) 18... Qxe7 {[%emt 0:00:06]} 19. Rc7 $1 {[%emt 0:03:26]} Nhf6 {[%emt 0:00:
00] White must now prevent ...Qd6.} 20. Ne5 {[%emt 0:00:07]} Rac8 {[%emt 0:00:
00]} 21. Ra7 {[%emt 0:09:14]} Nb6 {[%emt 0:05:13]} 22. Rxe7 $16 {[%emt 0:01:30]
White is more active. White leaves nothing to chance now.} Nxa4 {[%emt 0:00:04]
} 23. Bb7 {[%emt 0:00:06]} Nd5 {[%emt 0:16:41]} (23... Bxb7 $142 24. Rxb7 Rc2
25. Rxa4 Rxe2) 24. Bxc8 {[%emt 0:06:12]} Nxe7 {[%emt 0:02:44]} 25. Bxa6 {
[%emt 0:00:04]} Nxb2 {[%emt 0:00:06]} 26. Rxa5 {[%emt 0:01:40]} Ra8 {[%emt 0:
00:00]} 27. Rb5 {[%emt 0:04:06]} Na4 {[%emt 0:00:03]} 28. Rb7 {[%emt 0:00:54]}
Ng6 {[%emt 0:00:13] [#]} 29. Nc6 $1 {[%emt 0:01:02]} Rc8 {[%emt 0:01:12]} 30.
Nb4 {[%emt 0:01:56]} ({White should try} 30. Na7 $18 Ra8 31. Bd3) 30... Nc3 {
[%emt 0:00:28]} 31. Kg2 {[%emt 0:00:26]} Rd8 {[%emt 0:01:22]} 32. Bd3 {[%emt 0:
00:00]} Nd5 {[%emt 0:00:55]} 33. Nxd5 {[%emt 0:00:21]} exd5 $18 {[%emt 0:00:38]
Endgame KRB-KRN} 34. h4 {[%emt 0:01:00]} Nf8 {[%emt 0:00:07]} 35. Bb5 {[%emt 0:
01:15]} Ne6 {[%emt 0:00:23]} 36. e3 {[%emt 0:00:05]} Kf8 {[%emt 0:00:00]} 37.
g4 {[%emt 0:01:02]} h6 {[%emt 0:00:32]} 38. f4 {[%emt 0:01:10] Hoping for f5.}
g6 {[%emt 0:00:06]} 39. Kf3 {[%emt 0:02:22]} Rd6 {[%emt 0:00:00]} (39... Ng7
$142 40. Bd3 Ne8) 40. Ba4 {[%emt 0:01:01]} h5 $2 {[%emt 0:00:00]} (40... Ng7
41. Rb8+ Ke7 42. Rb7+ Kf8 43. Rb8+ Ke7 44. Rb7+ Kf8) 41. gxh5 {[%emt 0:31:36]}
gxh5 {[%emt 0:01:22]} 42. Bb3 {[%emt 0:00:18]} Ng7 {[%emt 0:00:00]} 43. Rb5 {
[%emt 0:00:00] White has a decisive advantage.} Nf5 {[%emt 0:00:00]} 44. Bxd5 {
[%emt 0:00:00]} ({Don't take} 44. Rxd5 Rxd5 45. Bxd5 Nxh4+ 46. Kf2 Nf5 $18)
44... Nxh4+ {[%emt 0:00:00]} 45. Kf2 {[%emt 0:00:00]} Nf5 {[%emt 0:00:00]} 46.
Bf3 {[%emt 0:00:00][%csl Yf5,Yh5] Weighted Error Value: White=0.09 (flawless) /
Black=0.23 (precise)} 1-0

[Event "44th Chess Olympiad Open 2022"]
[Site "Chennai"]
[Date "2022.07.30"]
[Round "2.5"]
[White "Moranda, Wojciech"]
[Black "Sanchez, Sebastian Felipe"]
[Result "1/2-1/2"]
[WhiteElo "2636"]
[BlackElo "2440"]
[Annotator "TA"]
[PlyCount "61"]
[EventDate "2022.??.??"]
[TimeControl "60"]

{[%evp 14,61,6,6,8,18,10,9,54,41,29,0,4,7,5,12,31,14,50,59,67,60,56,58,89,85,
86,47,45,4,4,2,2,2,2,0,0,0,0,0,0,0,0,0,0,0,0,0,0,0]} 1. e4 {[%emt 0:00:05]} e6
{[%emt 0:00:23]} 2. d4 {[%emt 0:00:07]} d5 {[%emt 0:00:06]} 3. Nd2 {[%emt 0:00:
00]} c5 {[%emt 0:02:24]} 4. Ngf3 {[%emt 0:00:17]} cxd4 {[%emt 0:00:13]} 5. Nxd4
{[%emt 0:00:09]} Nc6 {[%emt 0:00:39]} 6. Bb5 {[%emt 0:00:11][%cal Yf1b5,Yb5d3,
Yd3e4]} Bd7 {[%emt 0:00:05]} 7. Nxc6 {[%emt 0:00:10]} bxc6 {[%emt 0:00:00]} 8.
Bd3 {[%emt 0:00:08]} Bd6 {[%emt 0:00:05] C07: French Tarrasch: 3... c5, 4 Ngf3
and 4 exd5 Qxd5.} 9. Qe2 {[%emt 0:00:54]} e5 {[%emt 0:03:19] is cutting edge
theory.} 10. c4 {[%emt 0:02:26]} Ne7 {[%emt 0:05:08][%cal Yg8e7,Ye7d5,Yd5f4]}
11. cxd5 $1 {[%emt 0:11:06]} cxd5 {[%emt 0:00:06]} 12. exd5 {[%emt 0:03:38]}
Nxd5 {[%emt 0:00:06]} 13. Be4 {[%emt 0:00:34]} Nf4 {[%emt 0:14:37]} 14. Qa6 $36
{[%emt 0:00:43] White has the initiative.} Bc7 {[%emt 0:01:40][%cal Ye8g8] [#]}
15. Nc4 $146 {[%emt 0:17:03] [#] And now Bxf4 would win.} ({Predecessor:} 15.
O-O O-O 16. Nf3 Rb8 17. Bxf4 Bb5 18. Qxa7 Bxf1 19. Bxe5 Bxe5 20. Nxe5 Bb5 21.
a4 Qe8 22. Qc5 Bxa4 23. b4 Rb5 24. Qd4 Rxe5 {0-1 (24) Matveeva,O (2171)
-Liyanage,R (2340) Chess.com INT 2022}) 15... Rb8 {[%emt 0:11:21] aiming for ..
.0-0.} 16. Bxf4 {[%emt 0:16:00]} exf4 {[%emt 0:00:06]} 17. O-O {[%emt 0:06:06]}
O-O $1 {[%emt 0:02:55] Hoping for ... Bb5.} 18. Rad1 {[%emt 0:07:49]} f3 {
[%emt 0:15:40]} 19. Bxf3 {[%emt 0:07:23]} Bb5 {[%emt 0:00:07]} 20. Rxd8 {
[%emt 0:04:04] White is much more active.} (20. Qxa7 {is more complex.} Qe7 21.
Qd4 Rfd8 22. Bd5) 20... Bxa6 {[%emt 0:00:03] This bishop pair is nice.} 21.
Rxb8 {[%emt 0:00:48]} Rxb8 {[%emt 0:00:27] The position is equal.} 22. Rc1 {
[%emt 0:01:01]} Bxc4 {[%emt 0:03:21]} 23. Rxc4 {[%emt 0:00:08]} Rxb2 $11 {
[%emt 0:00:05] [#] Endgame ( -> ...Rb1+). KRB-KRB} 24. g3 {[%emt 0:01:07]} Bd8
{[%emt 0:05:41]} 25. Re4 {[%emt 0:04:17][%cal Re4e8]} Kf8 {[%emt 0:00:26]
Prevents Re8+.} 26. Re2 {[%emt 0:00:09]} Rxe2 {[%emt 0:00:10]} 27. Bxe2 {
[%emt 0:00:06]} Bb6 {[%emt 0:00:07]} 28. Bc4 {[%emt 0:00:09]} Ke7 {[%emt 0:00:
09]} 29. Kf1 {[%emt 0:00:09]} h5 {[%emt 0:00:00]} 30. h4 {[%emt 0:00:13]} g6 {
[%emt 0:00:07]} 31. Ke2 {[%emt 0:00:05] Weighted Error Value: White=0.06 
(flawless) /Black=0.07 (flawless)} 1/2-1/2

[Event "44th Chess Olympiad Open 2022"]
[Site "Chennai"]
[Date "2022.07.30"]
[Round "2.5"]
[White "Avila Pavas, Santiago"]
[Black "Piorun, Kacper"]
[Result "0-1"]
[WhiteElo "2453"]
[BlackElo "2636"]
[Annotator "TA"]
[PlyCount "78"]
[EventDate "2022.??.??"]
[TimeControl "60"]

{[%evp 10,78,23,31,33,21,44,38,55,36,96,76,78,66,86,71,80,53,61,57,60,0,0,-4,
-5,-57,-22,-48,-53,-31,0,0,0,-33,-37,-57,-40,-70,-30,-92,-83,-92,-90,-91,-67,
-109,-135,-126,-118,-177,-181,-189,-164,-337,-334,-305,-191,-295,-255,-241,
-252,-236,-227,-906,-899,-1186,-1171,-1119,-1112,-1607,-529]} 1. e4 {[%emt 0:
00:00]} c6 {[%emt 0:00:10]} 2. d4 {[%emt 0:00:18]} d5 {[%emt 0:00:06]} 3. e5 {
[%emt 0:00:13]} Bf5 {[%emt 0:00:43]} 4. Nf3 {[%emt 0:00:19]} e6 {[%emt 0:00:14]
} 5. Be2 {[%emt 0:00:18]} Ne7 {[%emt 0:01:33]} 6. O-O {[%emt 0:00:31]} Ng6 {
[%emt 0:13:20] 6...h6 gains popularity. B12: Caro-Kann: Advance Variation.} 7.
a4 {[%emt 0:14:04]} Nd7 {[%emt 0:13:31]} 8. Ne1 {[%emt 0:11:13] g4 is the
strong threat.} h5 {[%emt 0:00:00] White is slightly better.} 9. a5 {[%emt 0:
00:00] [#]} f6 $146 {[%emt 0:00:00] [#]} ({Better is} 9... a6 $14) ({
Predecessor:} 9... c5 10. c3 cxd4 11. cxd4 Bxb1 12. Rxb1 Qxa5 13. Be3 h4 14. h3
Be7 15. Bd3 Rc8 16. Bxg6 fxg6 {1-0 (33) Malmstroem,J (1993)-Sherwood,R (1801)
IECG email 2006}) 10. f4 $1 $16 h4 {[%emt 0:10:38]} 11. Be3 {[%emt 0:16:49]} c5
{[%emt 0:00:00]} 12. c3 {[%emt 0:00:00]} Qc7 {[%emt 0:00:00]} 13. a6 {[%emt 0:
00:00]} Rb8 {[%emt 0:01:36]} 14. axb7 {[%emt 0:25:35]} Rxb7 {[%emt 0:00:08]}
15. Nd2 {[%emt 0:07:08]} (15. Ra2 $14) 15... Rxb2 $11 {[%emt 0:04:26]} 16. Nd3
{[%emt 0:01:39]} Rb7 {[%emt 0:00:16]} 17. exf6 {[%emt 0:02:04]} (17. Re1 $11)
17... gxf6 $15 {[%emt 0:00:38]} 18. dxc5 {[%emt 0:01:39]} Nxc5 {[%emt 0:01:59]
[%cal Yd7c5,Yc5e4,Ye4c3]} 19. Nf3 $1 {[%emt 0:00:07]} Ne4 {[%emt 0:00:00]} 20.
Nd4 $1 {[%emt 0:00:47]} Nxc3 {[%emt 0:00:33]} 21. Qe1 {[%emt 0:00:13]} Kf7 {
[%emt 0:04:03]} 22. Nxf5 {[%emt 0:01:39]} exf5 {[%emt 0:07:03]} ({But not} 
22... Nxe2+ 23. Qxe2 exf5 24. Rfc1 $11) 23. Bf3 {[%emt 0:00:05] [#] And now
Rc1 would win.} Ne4 {[%emt 0:01:38]} 24. Rc1 {[%emt 0:03:09]} (24. Qa5 $11 Qc4
25. Be2) 24... Qd7 $17 {[%emt 0:01:43] White is on the road to losing.} 25. Qa5
{[%emt 0:00:06]} Be7 {[%emt 0:03:13]} 26. Rfd1 {[%emt 0:00:05]} Qe6 {[%emt 0:
00:00]} 27. Nf2 {[%emt 0:01:26]} Rd8 {[%emt 0:07:18]} 28. Qa4 {[%emt 0:00:45]
Against Rb3} Rd6 {[%emt 0:04:57] Prevents Rc6.} 29. Qd4 {[%emt 0:00:29]} (29.
Bh5 $17) 29... Kg7 $19 {[%emt 0:01:01]} 30. Nd3 {[%emt 0:00:49]} Rdd7 {[%emt 0:
00:00][%cal Yh4h3]} 31. Nf2 $2 {[%emt 0:00:49]} (31. Bf2) 31... Bd8 {[%emt 0:
00:00]} 32. Qa4 {[%emt 0:00:29]} Rd6 {[%emt 0:01:16][%cal Yd7d6,Yd6b6,Yb6b1]
Prevents Rc6.} 33. Re1 {[%emt 0:00:32]} (33. Qa2 $142) 33... Bb6 {[%emt 0:00:
29]} 34. Bxb6 {[%emt 0:00:33]} Rdxb6 {[%emt 0:00:10]} ({Weaker is} 34... axb6
35. Nd3) 35. Nd3 {[%emt 0:00:29]} Qd6 {[%emt 0:01:38]} 36. Rc8 $2 {[%emt 0:00:
31]} (36. Qd4) 36... Rb1 {[%emt 0:01:23] ( -> ...Qb6+). Black is clearly
winning.} 37. Rcc1 {[%emt 0:00:31]} Rxc1 {[%emt 0:00:32]} 38. Rxc1 {[%emt 0:00:
14]} Nxf4 {[%emt 0:01:25]} 39. Bxe4 {[%emt 0:00:38]} fxe4 {[%emt 0:00:00]
Weighted Error Value: White=0.57/Black=0.13 (very precise)} (39... Ne2+ $142
40. Kf2 dxe4) 0-1

[Event "44th Chess Olympiad Open 2022"]
[Site "Chennai"]
[Date "2022.07.30"]
[Round "2.5"]
[White "Valderrama Quiceno, Esteban Alb"]
[Black "Bartel, Mateusz"]
[Result "1/2-1/2"]
[WhiteElo "2436"]
[BlackElo "2597"]
[Annotator "TA"]
[PlyCount "60"]
[EventDate "2022.??.??"]
[TimeControl "60"]

{[%evp 9,60,20,21,11,12,5,17,8,31,24,34,31,36,20,35,32,33,28,66,56,52,38,68,29,
29,25,22,27,42,32,28,28,29,33,33,33,40,38,41,38,82,79,74,68,128,133,169,118,
136,143,160,160,136]} 1. Nf3 {[%emt 0:00:17]} Nf6 {[%emt 0:00:08]} 2. g3 {
[%emt 0:01:17]} b5 {[%emt 0:00:04]} 3. Bg2 {[%emt 0:01:11]} Bb7 {[%emt 0:00:09]
} 4. O-O {[%emt 0:01:22]} e6 {[%emt 0:00:06]} 5. d3 {[%emt 0:02:43]} d6 {
[%emt 0:01:37]} 6. c4 {[%emt 0:07:26] A05: Réti Opening: 1 Nf3 Nf6.} bxc4 {
[%emt 0:02:09]} 7. dxc4 {[%emt 0:01:19]} Nbd7 {[%emt 0:03:35] [#]} 8. Qc2 $146
{[%emt 0:03:31] The position is equal.} ({Predecessor:} 8. Nc3 Be7 9. Nd4 Bxg2
10. Kxg2 Nb6 11. Nc6 Qd7 12. Nxe7 Qxe7 13. b3 O-O 14. e4 {1-0 (42) Feng,M 
(1833)-Vazquez Maccarini,D (1914) Al Ain 2013}) 8... Be7 {[%emt 0:02:25]} 9.
Nc3 {[%emt 0:00:50]} O-O {[%emt 0:00:12]} 10. Rd1 {[%emt 0:01:18]} Qb8 {
[%emt 0:04:44]} 11. b3 {[%emt 0:05:41]} a5 {[%emt 0:04:02]} 12. e4 {[%emt 0:00:
00]} Rd8 {[%emt 0:14:21]} 13. Nd4 {[%emt 0:11:04]} c5 {[%emt 0:10:27]} 14. Ndb5
{[%emt 0:04:18]} Ne5 {[%emt 0:00:03]} 15. Be3 {[%emt 0:24:56]} Nc6 {[%emt 0:00:
00]} 16. h3 {[%emt 0:00:48]} e5 {[%emt 0:08:49]} 17. Rab1 {[%emt 0:03:50]} Nd4
{[%emt 0:05:17]} 18. Qd3 {[%emt 0:00:09]} h6 {[%emt 0:04:11]} 19. a4 {[%emt 0:
00:00]} Rf8 {[%emt 0:01:32]} 20. Kh2 {[%emt 0:03:02]} Qd8 {[%emt 0:04:49]} 21.
Rf1 {[%emt 0:03:05]} Nd7 {[%emt 0:03:19][%cal Yf6d7,Yd7b8,Yb8c6]} 22. Bd2 {
[%emt 0:01:03]} Nb8 {[%emt 0:00:31]} 23. f4 {[%emt 0:02:34]} Nbc6 {[%emt 0:00:
08]} 24. Nd5 {[%emt 0:01:28]} exf4 {[%emt 0:05:19]} 25. gxf4 {[%emt 0:02:34]}
Bh4 {[%emt 0:00:02]} 26. Bc3 {[%emt 0:00:48] White is more active.} Nxb5 {
[%emt 0:00:53]} (26... Rb8 $14) 27. cxb5 $16 {[%emt 0:00:48]} Nd4 {[%emt 0:02:
55]} 28. Bxd4 {[%emt 0:00:37]} ({White should try} 28. Ne3 $18) 28... cxd4 {
[%emt 0:00:07]} 29. Qxd4 {[%emt 0:00:35]} Bxd5 {[%emt 0:00:08]} 30. Qxd5 {
[%emt 0:00:09]} ({Resist} 30. exd5 $6 Re8 $16) 30... Rc8 {[%emt 0:00:10]
Weighted Error Value: White=0.07 (flawless) /Black=0.13 (very precise)} 1/2-1/2

[Event "44th Chess Olympiad Open 2022"]
[Site "Chennai"]
[Date "2022.07.30"]
[Round "2.6"]
[White "Guseinov, Gadir"]
[Black "Barcenilla, Rogelio"]
[Result "1-0"]
[WhiteElo "2668"]
[BlackElo "2463"]
[Annotator "TA"]
[PlyCount "75"]
[EventDate "2022.??.??"]
[TimeControl "60"]

{[%evp 18,75,0,16,33,20,33,40,37,32,35,47,70,49,67,41,62,12,87,90,92,94,180,
175,199,202,202,210,199,207,194,189,222,216,443,429,414,450,433,308,609,498,
830,813,1370,1401,1433,1419,1380,1350,1204,1114,29992,29993,29993,29994,29994,
29995,29995,29993]} 1. e4 {[%emt 0:00:06]} e5 {[%emt 0:00:19]} 2. Nf3 {[%emt 0:
00:00]} Nc6 {[%emt 0:00:08]} 3. Bb5 {[%emt 0:00:17][%cal Yf1b5,Yb5a4,Ya4b3,
Yb3a2]} a6 {[%emt 0:00:06]} 4. Ba4 {[%emt 0:00:06]} Nf6 {[%emt 0:00:00]} 5. O-O
{[%emt 0:00:05]} b5 {[%emt 0:00:05]} 6. Bb3 {[%emt 0:00:05]} Be7 {[%emt 0:00:
04]} 7. d3 {[%emt 0:00:28]} d6 {[%emt 0:00:42]} 8. a3 {[%emt 0:00:00]} O-O {
[%emt 0:00:12]} 9. Nc3 {[%emt 0:00:39]} Bg4 {[%emt 0:04:31]} 10. Be3 {[%emt 0:
02:16]} Na5 {[%emt 0:05:41] C84: Closed Ruy Lopez: Unusual White 6th moves.}
11. Ba2 {[%emt 0:00:51]} c5 {[%emt 0:00:11]} 12. Nd5 {[%emt 0:05:36]} Nc6 {
[%emt 0:02:48] White is slightly better.} 13. c3 {[%emt 0:01:00]} Be6 {[%emt 0:
13:59] [#]} 14. b4 $146 {[%emt 0:07:33]} ({Predecessor:} 14. Nxf6+ Bxf6 15. b4
cxb4 16. axb4 Bg4 17. h3 Bh5 18. Bd5 Qc8 19. Kh2 a5 20. bxa5 Rxa5 21. Bxc6 Rxa1
22. Qxa1 Qxc6 {0-1 (36) Weide,S-Dernbecher,K freechess.de 2016}) 14... Nd7 {
[%emt 0:02:56]} 15. a4 {[%emt 0:09:52]} cxb4 {[%emt 0:05:27]} 16. cxb4 {
[%emt 0:00:50]} Rb8 {[%emt 0:02:13]} 17. axb5 {[%emt 0:06:08]} (17. Bd2 $14)
17... axb5 {[%emt 0:00:19]} (17... Rxb5 $11 18. d4 (18. Nxe7+ Qxe7 19. Bc4 Rb7
$11) 18... Bxd5 19. Bxd5 Nxb4) 18. Qd2 $16 {[%emt 0:03:02] White now steadily
converts the win.} Bf6 {[%emt 0:01:30]} 19. Rfc1 {[%emt 0:11:59] 0x0.
0013b9ed405cdp-1022s more active pieces.} Ne7 {[%emt 0:03:46]} (19... Rc8 $16 {
was worth a try.} 20. h3 Bxd5) 20. Nxf6+ $18 {[%emt 0:01:08]} gxf6 {[%emt 0:00:
00]} 21. Bxe6 {[%emt 0:05:34]} fxe6 {[%emt 0:00:09]} 22. Ra6 {[%emt 0:00:26]
[%cal Ya1a6,Ya6c6,Yc6c7]} Nc8 {[%emt 0:06:08]} 23. Qa2 {[%emt 0:00:27]} Re8 {
[%emt 0:01:38]} 24. Nd2 {[%emt 0:04:32][%cal Yf3d2,Yd2b3,Yb3a5]} Ndb6 {[%emt 0:
05:45]} 25. Nb3 {[%emt 0:04:48]} Na4 $2 {[%emt 0:04:55]} (25... Kh8 26. Na5 Qd7
) 26. Na5 {[%emt 0:00:52] [#] Black must now prevent Nc6.} Qd7 {[%emt 0:00:33]}
27. Rac6 {[%emt 0:00:28] Threatens to win with Rc7.} Qf7 {[%emt 0:07:59]} 28.
Rc7 {[%emt 0:01:15]} Qf8 {[%emt 0:00:22]} (28... Qh5 29. f4 exf4) 29. Qe2 {
[%emt 0:10:12] Nc6 is the strong threat.} ({Less strong is} 29. Rxc8 Rexc8 30.
Qxe6+ Kh8 $11) 29... Nab6 {[%emt 0:07:56]} (29... Re7 $142 30. Qg4+ Kh8 31.
Rxe7 Nxe7 32. Qxe6 Ng8) 30. Nc6 {[%emt 0:01:28]} Ne7 {[%emt 0:00:00]} 31. Nxb8
{[%emt 0:02:10]} Rxb8 {[%emt 0:00:06]} 32. Qg4+ {[%emt 0:00:19]} Kf7 {[%emt 0:
00:59]} 33. Qh5+ {[%emt 0:00:06]} Kg8 {[%emt 0:00:17]} 34. Bxb6 {[%emt 0:00:13]
} Rxb6 {[%emt 0:00:13] [#]} 35. Rxe7 $1 {[%emt 0:00:07] White mates.} Qxe7 {
[%emt 0:00:17]} 36. Rc8+ {[%emt 0:00:04]} Kg7 {[%emt 0:00:00]} 37. Qg4+ {
[%emt 0:00:03]} Kh6 {[%emt 0:00:08]} 38. Rg8 {[%emt 0:00:06] Weighted Error
Value: White=0.06 (flawless) /Black=0.74} 1-0

[Event "44th Chess Olympiad Open 2022"]
[Site "Chennai"]
[Date "2022.07.30"]
[Round "2.6"]
[White "Abasov, Nijat"]
[Black "Bersamina, Paulo"]
[Result "1-0"]
[WhiteElo "2633"]
[BlackElo "2429"]
[Annotator "TA"]
[PlyCount "81"]
[EventDate "2022.??.??"]
[TimeControl "60"]

{[%evp 22,81,18,11,6,15,16,5,16,18,59,33,58,64,41,59,77,74,88,79,81,88,94,95,
89,81,145,147,164,158,158,119,165,160,227,231,236,222,230,219,221,231,253,235,
342,349,1064,1000,1014,265,947,962,1331,1304,1285,1274,1223,1157,1154,1220,
29990,29991]} 1. e4 {[%emt 0:00:21]} e5 {[%emt 0:00:10]} 2. Nf3 {[%emt 0:00:23]
} Nc6 {[%emt 0:00:06]} 3. Bb5 {[%emt 0:00:07][%cal Yf1b5,Yb5a4,Ya4b3,Yb3a2]} a6
{[%emt 0:00:07]} 4. Ba4 {[%emt 0:00:12]} Nf6 {[%emt 0:00:08]} 5. O-O {[%emt 0:
00:15]} Be7 {[%emt 0:00:10]} 6. Re1 {[%emt 0:00:50]} b5 {[%emt 0:00:00]} 7. Bb3
{[%emt 0:00:06]} O-O {[%emt 0:00:07]} 8. a4 {[%emt 0:00:07]} Bb7 {[%emt 0:02:
45]} 9. d3 {[%emt 0:00:35]} d6 {[%emt 0:00:48]} 10. Bd2 {[%emt 0:00:00]} Qd7 {
[%emt 0:08:12]} 11. Nc3 {[%emt 0:02:00]} Na5 {[%emt 0:08:30]} 12. Ba2 {[%emt 0:
00:24]} c5 {[%emt 0:05:02] C88: Closed Ruy Lopez: Anti-Marshall Systems.} 13.
Ne2 {[%emt 0:05:35]} b4 {[%emt 0:04:50]} 14. Ng3 {[%emt 0:01:23]} Bd8 {[%emt 0:
00:40] [#] The position is equal.} (14... Rab8 {keeps more tension.} 15. Nf5
Bd8 16. Re3 g6) 15. c3 $146 {[%emt 0:05:38]} ({Predecessor:} 15. Nf5 Rb8 16.
Bh6 gxh6 17. Qd2 c4 18. Qxh6 Ne8 19. Re3 Qe6 20. Nxe5 dxe5 21. Rg3+ {½-½ (60)
Haugen,A (2550)-Moreira,J (2286) ICCF corr 2004}) 15... Nc6 {[%emt 0:00:10]}
16. h3 {[%emt 0:02:40]} bxc3 {[%emt 0:03:28]} 17. bxc3 {[%emt 0:00:23]} Bc8 {
[%emt 0:00:29]} 18. Bg5 {[%emt 0:06:29]} h6 {[%emt 0:00:00]} 19. Be3 {[%emt 0:
01:42] White is more active.} Ba5 {[%emt 0:03:34]} 20. Qc1 {[%emt 0:01:28]
[%cal Ye3h6] Hoping for Bxh6!} Kh7 {[%emt 0:04:51]} 21. Rd1 {[%emt 0:06:51]}
Qc7 {[%emt 0:18:48]} 22. d4 {[%emt 0:01:28]} cxd4 {[%emt 0:00:00]} 23. cxd4 {
[%emt 0:00:20]} Nxd4 {[%emt 0:00:09]} (23... Rb8 $142) 24. Nxd4 $16 {[%emt 0:
00:41]} Qxc1 {[%emt 0:01:52]} 25. Raxc1 {[%emt 0:00:12]} ({But not} 25. Rdxc1
exd4 26. Bxd4 Be6 $16) 25... exd4 {[%emt 0:00:08]} 26. Bxd4 {[%emt 0:05:05]}
Bb4 {[%emt 0:04:43]} (26... Be6 $16 {was worth a try.}) 27. Rc7 $1 $18 {
[%emt 0:11:24]} Be6 {[%emt 0:01:23] [#]} (27... Rb8 $16 28. Rxf7 (28. Bxf7 Rb7
$16) 28... Rxf7 29. Bxf7 a5) 28. Bxe6 $1 {[%emt 0:00:22]} fxe6 {[%emt 0:00:06]}
29. Bxf6 {[%emt 0:00:07]} Rxf6 {[%emt 0:00:09]} 30. Nh5 {[%emt 0:00:05]} Rg6 {
[%emt 0:00:29] [#]} 31. f4 {[%emt 0:00:07][%cal Yf2f4,Yf4f5]} Rb8 {[%emt 0:05:
22]} 32. g4 {[%emt 0:03:25] aiming for f5.} Bc5+ {[%emt 0:03:16]} (32... Ba5 {
is a better defense.}) 33. Kf1 {[%emt 0:00:00]} e5 $2 {[%emt 0:03:29]} (33...
Bb6) 34. f5 {[%emt 0:02:02]} Rg5 {[%emt 0:00:00]} 35. Nf6+ {[%emt 0:01:08]} Kh8
{[%emt 0:00:06]} 36. Nd7 {[%emt 0:00:07][%csl Yb8,Yc5]} Re8 {[%emt 0:01:55]}
37. Nxc5 {[%emt 0:00:11]} dxc5 {[%emt 0:00:00]} 38. Kg2 {[%emt 0:00:31]} Rb8 {
[%emt 0:03:55]} 39. Kg3 {[%emt 0:00:23]} Rb3+ {[%emt 0:00:07]} 40. Kh4 {
[%emt 0:00:12]} Kh7 {[%emt 0:01:05]} 41. Rd8 {[%emt 0:30:23] Weighted Error
Value: White=0.03 (flawless) /Black=0.47} 1-0